bitfinex/quotes_SOLUSD_20240920
["timestamp","ask_amount","ask_price","bid_price","bid_amount"]
[1726854554415,6.8265,146.49,146.4,0.25098]
[1726854554735,13.92587432,146.49,146.4,0.25098]
[1726854555051,1.70719986,146.48,146.4,0.25098]
[1726854555340,6.8276,146.47,146.4,0.25098]
[1726854555542,6.8278,146.46,146.4,0.25098]
[1726854555719,6.8277,146.47,146.4,0.25098]
[1726854557739,1.70737228,146.46,146.4,0.25098]
[1726854561442,1.70737228,146.46,146.4,0.12549]
[1726854561650,30.605484,146.45,146.39,0.2708136]
[1726854561848,1.70767239,146.44,146.39,0.2708136]
[1726854562143,23.776884,146.45,146.39,0.2708136]
[1726854562347,6.8279,146.46,146.39,0.2708136]
[1726854562649,6.8276,146.47,146.39,0.2708136]
[1726854562849,6.8276,146.47,146.4,0.12549]
[1726854563942,6.8278,146.46,146.4,0.12549]
[1726854565064,8.53562861,146.45,146.39,0.2708136]
[1726854565746,7.10079837,146.47,146.4,0.12549]
[1726854566046,13.92839837,146.47,146.4,0.25098]
[1726854567346,7.10079837,146.47,146.4,21.81838149]
[1726854567573,7.10079837,146.47,146.42,0.25098]
[1726854567850,6.8262,146.5,146.44,0.12549]
[1726854568236,6.8262,146.5,146.43,0.54117582]
[1726854568237,8.53347227,146.49,146.43,0.12549]
[1726854568638,1.70707227,146.49,146.42,0.25098]
[1726854568845,6.8262,146.5,146.42,0.25098]
[1726854569437,6.8262,146.5,146.44,0.12549]
[1726854569748,1.70704015,146.49,146.44,0.12549]
[1726854570152,8.53344015,146.49,146.44,0.12549]
[1726854570638,30.602884,146.5,146.44,0.12549]
[1726854571753,1.70704342,146.49,146.44,0.12549]
[1726854572168,23.776884,146.5,146.44,0.12549]
[1726854572345,23.776884,146.5,146.4,1.1732]
[1726854572346,6.8276,146.47,146.4,1.1732]
[1726854572550,1.7072414,146.46,146.4,1.1732]
[1726854573541,1.70724413,146.47,146.41,0.25098]
[1726854573742,8.53454413,146.47,146.41,0.25098]
[1726854574664,1.70724399,146.46,146.41,0.25098]
[1726854575361,8.53504399,146.46,146.4,0.12549]
[1726854575565,8.53589691,146.45,146.39,20.2708136]
[1726854575738,6.8284,146.45,146.39,20.2708136]
[1726854575939,6.8284,146.45,146.39,19.7708136]
[1726854576559,6.827,146.48,146.39,19.7708136]
[1726854576750,24.0261273,146.5,146.4,0.25098]
[1726854576950,6.8269,146.48,146.4,0.25098]
[1726854577152,8.53456149,146.47,146.4,0.25098]
[1726854577549,23.776884,146.46,146.39,19.7708136]
[1726854577852,8.53596646,146.45,146.39,19.7708136]
[1726854578161,1.70756646,146.45,146.38,9.7811]
[1726854578961,6.8288,146.44,146.39,0.12549]
[1726854579141,1.70756926,146.43,146.39,0.12549]
[1726854580259,1.70756786,146.44,146.39,0.12549]
[1726854581063,6.829,146.44,146.39,0.12549]
[1726854581244,6.8285,146.45,146.39,0.66773866]
[1726854581446,6.8285,146.45,146.39,0.12549]
[1726854581862,6.8285,146.45,146.39,0.66761721]
[1726854582449,6.8278,146.46,146.4,0.12549]
[1726854582649,19.98157524,146.47,146.39,0.25098]
[1726854582952,6.8278,146.46,146.39,0.25098]
[1726854583862,13.15407524,146.47,146.39,0.25098]
[1726854583863,32.31296253,146.45,146.39,0.12549]
[1726854585151,13.15407524,146.47,146.39,0.25098]
[1726854585353,19.98177524,146.47,146.39,0.25098]
[1726854585669,6.8278,146.46,146.39,0.25098]
[1726854586147,8.53574999,146.45,146.39,0.25098]
[1726854586771,8.53574999,146.45,146.39,0.12549]
[1726854587572,6.8283,146.45,146.39,0.12549]
[1726854587774,6.828,146.46,146.39,0.25098]
[1726854588163,13.92797524,146.47,146.39,0.25098]
[1726854588359,7.10057524,146.47,146.39,20.79286431]
[1726854588573,7.10057524,146.47,146.41,0.25098]
[1726854588885,21.5453,146.51,146.43,0.25098]
[1726854588886,7.0754433,146.5,146.43,0.25098]
[1726854589048,0.2492433,146.5,146.43,0.12549]
[1726854589253,1.95610705,146.5,146.44,0.12549]
[1726854590752,8.78210705,146.5,146.43,0.25098]
[1726854591776,6.8271,146.48,146.43,0.25098]
[1726854592068,8.78228003,146.5,146.43,0.25098]
[1726854596075,23.776884,146.49,146.43,0.12549]
[1726854596256,1.70717661,146.48,146.43,0.12549]
[1726854596463,1.70717661,146.48,146.38,10.9543]
[1726854596666,1.70717661,146.48,146.39,0.12549]
[1726854597259,6.8276,146.47,146.39,0.12549]
[1726854597466,1.70732062,146.46,146.39,0.12549]
[1726854597665,1.70732062,146.46,146.39,20.25098]
[1726854599977,6.8272,146.48,146.39,20.25098]
[1726854600282,1.70726946,146.47,146.39,20.25098]
[1726854600683,6.8272,146.48,146.39,20.25098]
[1726854601264,1.70726086,146.47,146.39,20.25098]
[1726854601461,13.92595845,146.49,146.41,20.25098]
[1726854601977,1.70708566,146.48,146.41,20.25098]
[1726854603182,7.09925845,146.49,146.41,20.25098]
[1726854603373,0.2492433,146.5,146.41,40.64518149]
[1726854603573,8.7820386,146.5,146.43,20.25098]
[1726854604167,1.9561386,146.5,146.42,9.7811]
[1726854604384,6.8271,146.48,146.42,9.7811]
[1726854604581,1.70724749,146.47,146.42,9.7811]
[1726854604778,6.8271,146.48,146.42,9.7811]
[1726854604968,7.0752433,146.5,146.43,0.25098]
[1726854605485,0.2492433,146.5,146.43,20.25098]
[1726854606068,1.95609694,146.5,146.43,20.25098]
[1726854607088,0.2492433,146.5,146.43,20.25098]
[1726854607674,24.0261273,146.5,146.43,20.25098]
[1726854607877,1.7069918,146.49,146.43,20.25098]
[1726854608475,30.8523273,146.5,146.43,20.25098]
[1726854608679,1.70699189,146.49,146.43,20.25098]
[1726854608987,0.2492433,146.5,146.43,20.25098]
[1726854610966,0.2492433,146.5,146.45,20.25098]
[1726854611384,0.2492433,146.5,146.47,0.25098]
[1726854611977,0.2492433,146.5,146.46,13.27704806]
[1726854615990,0.2492433,146.5,146.46,0.12549]
[1726854616166,0.2492433,146.5,146.44,1.1732]
[1726854616167,0.2492433,146.5,146.44,0.25098]
[1726854616765,0.2492433,146.5,146.44,13.27704806]
[1726854617064,6.8265,146.49,146.44,0.25098]
[1726854617268,1.70691161,146.48,146.44,0.25098]
[1726854617471,0.2492433,146.5,146.44,0.25098]
[1726854618070,8.78210676,146.5,146.44,0.25098]
[1726854618792,0.2492433,146.54,146.5,44.027864]
[1726854618995,0.2492433,146.54,146.5,20.25098]
[1726854621794,0.2492433,146.54,146.47,0.12549]
[1726854621992,0.2492433,146.54,146.46,0.25098]
[1726854622291,1.95579037,146.54,146.46,0.25098]
[1726854622973,0.2492433,146.54,146.47,1.36521835]
[1726854623174,0.2492433,146.54,146.48,0.25098]
[1726854623390,0.2492433,146.54,146.5,0.25098]
[1726854623780,0.2492433,146.54,146.53,44.027864]
[1726854624287,0.2492433,146.54,146.53,20.25098]
[1726854624486,0.2492433,146.54,146.53,44.027864]
[1726854626384,0.2492433,146.58,146.53,64.38584262]
[1726854627797,0.2492433,146.58,146.53,20.25098]
[1726854628298,0.2492433,146.58,146.53,0.12549]
[1726854628471,0.2492433,146.58,146.5,20.0]
[1726854628668,1.70592278,146.57,146.5,20.0]
[1726854629673,0.2492433,146.58,146.51,0.25098]
[1726854630199,0.2492433,146.58,146.53,0.25098]
[1726854630715,0.2492433,146.58,146.52,0.12549]
[1726854630877,0.2492433,146.58,146.52,20.25098]
[1726854632272,0.2492433,146.58,146.51,0.25098]
[1726854632591,1.70596732,146.57,146.51,0.25098]
[1726854632792,14.80326732,146.57,146.5,20.0]
[1726854632978,14.80326732,146.57,146.47,20.35797862]
[1726854634288,14.80326732,146.57,146.49,0.12549]
[1726854634604,14.80326732,146.57,146.49,0.25098]
[1726854635979,13.0973,146.57,146.49,0.25098]
[1726854636173,6.2746,146.57,146.49,0.25098]
[1726854636374,1.70616667,146.56,146.49,0.25098]
[1726854636577,6.2746,146.57,146.49,0.25098]
[1726854636783,6.2746,146.57,146.49,20.25098]
[1726854637294,7.9805604,146.57,146.49,20.25098]
[1726854638186,6.2746,146.57,146.49,20.25098]
[1726854638883,13.0973,146.57,146.49,20.25098]
[1726854639095,6.2746,146.57,146.51,0.25098]
[1726854639607,6.2746,146.57,146.5,0.25098]
[1726854639807,6.2746,146.57,146.45,1.86658929]
[1726854639808,6.3037,146.54,146.45,1.86658929]
[1726854640019,22.2549,146.54,146.43,0.2492433]
[1726854640314,25.48361111,146.53,146.43,0.2492433]
[1726854640677,23.776884,146.51,146.43,0.2492433]
[1726854642382,30.602384,146.51,146.43,0.2492433]
[1726854642584,30.602384,146.51,146.44,0.25098]
[1726854643414,1.70691861,146.5,146.44,0.25098]
[1726854644216,13.93065389,146.52,146.44,0.25098]
[1726854644505,13.93065389,146.52,146.44,1.6165125]
[1726854644506,7.10565389,146.52,146.44,1.6165125]
[1726854644805,30.601684,146.53,146.44,1.6165125]
[1726854645001,6.8248,146.53,146.44,1.6165125]
[1726854645202,29.3605827,146.54,146.44,1.6165125]
[1726854645203,29.3605827,146.54,146.46,20.25098]
[1726854645408,22.2549,146.54,146.46,20.12549]
[1726854645701,6.8251,146.52,146.46,20.12549]
[1726854645900,6.8251,146.52,146.46,0.12549]
[1726854646691,29.36025818,146.54,146.46,0.12549]
[1726854647099,29.0793,146.54,146.45,0.25098]
[1726854647508,1.7065559,146.53,146.45,0.25098]
[1726854648221,6.8251,146.52,146.45,0.25098]
[1726854648588,6.8251,146.52,146.43,0.2492433]
[1726854648589,6.8251,146.52,146.44,0.25098]
[1726854648795,6.8251,146.52,146.44,1.61640976]
[1726854649818,6.8246,146.53,146.44,0.25098]
[1726854650010,6.8246,146.53,146.44,20.25098]
[1726854650202,1.7066309,146.52,146.44,20.25098]
[1726854650802,23.776884,146.53,146.46,0.12549]
[1726854651210,6.8253,146.52,146.46,0.12549]
[1726854652294,6.8253,146.52,146.45,0.12549]
[1726854653491,23.776884,146.53,146.44,1.49091455]
[1726854653492,30.601384,146.53,146.44,0.25098]
[1726854653695,30.601384,146.53,146.46,0.25098]
[1726854658115,6.825,146.52,146.45,0.25098]
[1726854659309,20.12549,146.49,146.43,0.2492433]
[1726854659622,6.8276,146.47,146.43,0.2492433]
[1726854659816,22.7556,146.51,146.43,0.2492433]
[1726854659994,23.776884,146.5,146.43,0.2492433]
[1726854660617,6.8264,146.49,146.43,0.2492433]
[1726854661021,1.70709162,146.48,146.43,0.2492433]
[1726854661199,23.776884,146.47,146.43,0.2492433]
[1726854661397,1.70737033,146.46,146.43,0.2492433]
[1726854661598,6.8269,146.48,146.43,0.2492433]
[1726854661816,22.7556,146.51,146.43,0.2492433]
[1726854661817,6.8265,146.49,146.43,0.2492433]
[1726854662316,22.7556,146.51,146.43,0.2492433]
[1726854662317,6.827,146.48,146.43,0.2492433]
[1726854662627,6.8269,146.48,146.43,0.2492433]
[1726854662806,23.776884,146.48,146.43,0.2492433]
[1726854663724,6.826,146.5,146.43,0.2492433]
[1726854665207,6.8264,146.49,146.43,0.2492433]
[1726854665400,6.8278,146.46,146.43,0.2492433]
[1726854665712,1.70726228,146.45,146.43,0.2492433]
[1726854666019,8.53546228,146.45,146.43,0.2492433]
[1726854666322,1.70756724,146.44,146.43,0.2492433]
[1726854667028,8.53626716,146.44,146.43,0.2492433]
[1726854667206,6.8283,146.45,146.43,0.2492433]
[1726854668331,6.8279,146.46,146.43,0.2492433]
[1726854669100,13.93524269,146.47,146.43,0.2492433]
[1726854673409,7.10784269,146.47,146.43,0.2492433]
[1726854673827,6.8267,146.49,146.43,0.2492433]
[1726854674831,8.53401309,146.48,146.43,0.2492433]
[1726854675212,6.8273,146.47,146.43,0.2492433]
[1726854675418,1.7072569,146.46,146.43,0.2492433]
[1726854676046,6.827,146.48,146.43,0.2492433]
[1726854676333,1.70724178,146.47,146.43,0.2492433]
[1726854677214,8.53454178,146.47,146.43,0.2492433]
[1726854677414,1.707245,146.46,146.43,0.2492433]
[1726854678022,6.8285,146.45,146.43,0.2492433]
[1726854678321,1.70756735,146.44,146.43,0.2492433]
[1726854678715,17.0675,146.48,146.43,0.2492433]
[1726854678914,30.605584,146.44,146.43,0.2492433]
[1726854679533,20.0,146.49,146.43,0.2492433]
[1726854679711,23.902374,146.49,146.43,0.2492433]
[1726854680024,6.8276,146.47,146.43,0.2492433]
[1726854682521,8.53519462,146.46,146.43,0.2492433]
[1726854682911,1.70739462,146.46,146.43,0.2492433]
[1726854683633,1.70729251,146.47,146.43,0.2492433]
[1726854684906,8.53459251,146.47,146.43,0.2492433]
[1726854685113,1.70729251,146.47,146.43,0.2492433]
[1726854685308,7.10535215,146.48,146.44,0.12549]
[1726854685527,6.826,146.5,146.44,0.25098]
[1726854685945,8.53335411,146.49,146.43,0.2492433]
[1726854686114,6.8269,146.48,146.43,0.2492433]
[1726854686435,6.8275,146.47,146.43,0.2492433]
[1726854686734,6.8265,146.49,146.43,0.2492433]
[1726854686914,8.53411969,146.48,146.43,0.2492433]
[1726854687115,6.827,146.48,146.43,0.2492433]
[1726854689141,6.8273,146.47,146.43,0.2492433]
[1726854689520,1.70724431,146.46,146.43,0.2492433]
[1726854690613,6.827,146.48,146.43,0.2492433]
[1726854690614,1.70724411,146.47,146.43,0.2492433]
[1726854690816,1.70724411,146.45,146.43,0.2492433]
[1726854691217,1.70733697,146.48,146.43,0.2492433]
[1726854691843,22.7556,146.51,146.43,0.2492433]
[1726854692145,6.8264,146.49,146.43,0.2492433]
[1726854692312,1.70710564,146.48,146.43,0.2492433]
[1726854693720,22.7556,146.51,146.44,14.64685691]
[1726854694334,22.7556,146.51,146.44,13.28124897]
[1726854694941,29.581,146.51,146.44,13.28124897]
[1726854695322,1.70684759,146.5,146.44,13.28124897]
[1726854696638,6.8251,146.52,146.44,13.28124897]
[1726854696832,7.10360199,146.53,146.46,13.28124897]
[1726854697013,7.10360199,146.53,146.48,0.25098]
[1726854697213,22.0771,146.55,146.46,13.03026897]
[1726854697418,1.7066092,146.54,146.46,0.12549]
[1726854697634,22.0771,146.55,146.46,20.25098]
[1726854697930,1.70660622,146.54,146.46,20.25098]
[1726854698130,6.8241,146.54,146.46,20.25098]
[1726854698335,23.776884,146.54,146.46,20.25098]
[1726854698533,30.601084,146.54,146.46,20.25098]
[1726854699251,1.70660334,146.53,146.46,20.25098]
[1726854699552,30.601084,146.54,146.46,20.25098]
[1726854699847,1.70660331,146.53,146.46,20.25098]
[1726854701444,8.53110331,146.53,146.46,20.25098]
[1726854702032,8.825,146.52,146.46,20.25098]
[1726854702344,2.0,146.52,146.46,0.12549]
[1726854702540,1.70677879,146.51,146.46,0.12549]
[1726854702726,23.776884,146.5,146.46,0.12549]
[1726854702925,1.70705857,146.49,146.43,20.2492433]
[1726854703850,30.602884,146.5,146.43,20.2492433]
[1726854704426,30.602884,146.5,146.43,0.2492433]
[1726854706642,2.0,146.52,146.44,0.25098]
[1726854706848,8.8253,146.52,146.44,0.25098]
[1726854707528,8.8253,146.52,146.44,1.61646706]
[1726854707742,8.8253,146.52,146.44,0.25098]
[1726854708042,15.93240008,146.52,146.44,0.25098]
[1726854708819,15.93240008,146.52,146.44,1.61646436]
[1726854711937,9.10710008,146.52,146.46,13.28124897]
[1726854712135,9.10710008,146.52,146.48,0.25098]
[1726854712446,2.0,146.52,146.48,0.25098]
[1726854712749,2.0,146.52,146.46,13.03026897]
[1726854712750,2.0,146.52,146.47,0.25098]
[1726854715858,8.825,146.52,146.47,0.25098]
[1726854716746,8.53213836,146.51,146.46,20.12549]
[1726854717055,8.53213836,146.51,146.47,0.12549]
[1726854717233,6.8257,146.51,146.47,0.12549]
[1726854718043,6.8257,146.51,146.47,2.12549]
[1726854719834,8.53258801,146.5,146.47,2.0]
[1726854720032,6.8264,146.49,146.47,2.0]
[1726854720237,1.70682198,146.48,146.47,2.0]
[1726854720459,8.53362198,146.48,146.47,2.0]
[1726854720758,6.8268,146.48,146.47,2.0]
[1726854721551,6.8265,146.49,146.47,2.0]
[1726854722760,6.8258,146.51,146.47,2.0]
[1726854723361,8.8253,146.52,146.47,2.0]
[1726854723563,8.8253,146.52,146.47,3.36530501]
[1726854724448,8.8253,146.52,146.47,2.0]
[1726854724643,8.8253,146.52,146.48,1.36526114]
[1726854724864,2.0,146.52,146.49,0.25098]
[1726854725467,2.0,146.52,146.51,0.25098]
[1726854726553,2.0,146.52,146.47,23.1732]
[1726854726770,2.0,146.52,146.48,0.25098]
[1726854728654,2.0,146.52,146.48,0.12549]
[1726854728849,2.0,146.52,146.48,0.25098]
[1726854730873,2.0,146.52,146.48,1.61616625]
[1726854731368,2.0,146.52,146.48,0.25098]
[1726854731881,2.0,146.52,146.5,0.25098]
[1726854732059,2.0,146.52,146.51,58.42294872]
[1726854732266,2.0,146.52,146.51,57.05813297]
[1726854732961,2.0,146.52,146.51,0.12549]
[1726854733262,2.0,146.52,146.5,0.25098]
[1726854734365,2.0,146.52,146.5,0.12549]
[1726854736757,2.0,146.52,146.51,0.25098]
[1726854736958,2.0,146.52,146.51,1.61576788]
[1726854738579,2.0,146.52,146.51,44.027864]
[1726854738973,2.0,146.52,146.51,20.25098]
[1726854739163,2.0,146.52,146.51,0.25098]
[1726854741491,2.0,146.52,146.47,22.0]
[1726854742579,2.0,146.52,146.48,0.12549]
[1726854742767,2.0,146.52,146.48,0.25098]
[1726854744555,2.0,146.52,146.5,0.25098]
[1726854744792,2.0,146.52,146.51,1.36490334]
[1726854745285,2.0,146.52,146.51,1.61588334]
[1726854746475,2.0,146.52,146.51,0.12549]
[1726854746785,2.0,146.52,146.5,0.25098]
[1726854747162,2.0,146.52,146.47,22.0]
[1726854747358,2.0,146.52,146.48,0.12549]
[1726854747981,2.0,146.52,146.48,1.4905808]
[1726854748165,2.0,146.52,146.48,0.12549]
[1726854748684,2.0,146.52,146.49,0.12549]
[1726854748885,2.0,146.52,146.5,1.49041533]
[1726854749186,2.0,146.52,146.5,0.12549]
[1726854749860,2.0,146.52,146.51,0.12549]
[1726854750577,2.0,146.52,146.5,0.12549]
[1726854751183,2.0,146.52,146.51,0.12549]
[1726854759558,2.0,146.52,146.5,0.25098]
[1726854764389,2.0,146.52,146.5,0.12549]
[1726854770590,2.0,146.52,146.48,0.25098]
[1726854776995,2.0,146.52,146.5,0.25098]
[1726854779093,2.0,146.52,146.49,20.0]
[1726854780074,2.0,146.52,146.5,0.25098]
[1726854780597,2.0,146.52,146.47,2.0]
[1726854780806,6.8268,146.49,146.47,2.0]
[1726854780969,22.3316,146.51,146.47,2.0]
[1726854781170,1.70698183,146.5,146.47,2.0]
[1726854781470,8.53318183,146.5,146.47,2.0]
[1726854781667,1.70698183,146.5,146.47,2.0]
[1726854781873,22.3316,146.51,146.47,2.0]
[1726854782277,22.3316,146.51,146.48,0.25098]
[1726854782805,22.3316,146.51,146.48,20.25098]
[1726854784098,22.3316,146.51,146.48,0.25098]
[1726854785081,1.7063731,146.5,146.47,2.0]
[1726854785601,22.3316,146.51,146.47,2.0]
[1726854789798,22.3316,146.51,146.48,0.25098]
[1726854790906,1.70642804,146.5,146.47,2.0]
[1726854791384,22.3316,146.51,146.47,2.0]
[1726854793605,22.3316,146.51,146.48,0.12549]
[1726854794794,22.3316,146.51,146.48,0.25098]
[1726854795492,22.3316,146.51,146.47,2.0]
[1726854795690,23.776884,146.5,146.47,2.0]
[1726854795889,52.563584,146.48,146.47,2.0]
[1726854796603,45.736784,146.48,146.47,2.0]
[1726854797303,21.9599,146.48,146.47,2.0]
[1726854798114,45.736784,146.48,146.47,2.0]
[1726854800392,47.44399511,146.48,146.47,2.0]
[1726854800801,45.736784,146.48,146.47,2.0]
[1726854801903,47.44401044,146.48,146.43,0.2492433]
[1726854802209,23.776884,146.47,146.43,0.2492433]
[1726854802412,1.70755559,146.46,146.43,0.2492433]
[1726854803590,29.08139158,146.48,146.43,0.2492433]
[1726854803905,21.9599,146.48,146.43,0.2492433]
[1726854804315,1.70715206,146.47,146.43,0.2492433]
[1726854805918,21.9599,146.48,146.43,0.2492433]
[1726854806416,1.70725733,146.47,146.43,0.2492433]
[1726854807410,21.9599,146.48,146.43,0.2492433]
[1726854808219,1.70725417,146.47,146.43,0.2492433]
[1726854808516,21.9599,146.48,146.44,0.12549]
[1726854808813,1.70699716,146.47,146.43,0.2492433]
[1726854810402,30.604884,146.46,146.43,0.2492433]
[1726854811123,23.776884,146.44,146.43,0.2492433]
[1726854812019,6.8279,146.46,146.43,0.2492433]
[1726854812400,21.9599,146.48,146.43,0.2492433]
[1726854812595,1.70726387,146.47,146.43,0.2492433]
[1726854812812,6.8287,146.44,146.43,0.2492433]
[1726854813100,24.63050337,146.44,146.43,0.2492433]
[1726854814123,48.40738737,146.44,146.43,0.2492433]
[1726854814624,46.699284,146.44,146.43,0.2492433]
[1726854814925,48.40727958,146.44,146.43,0.2492433]
[1726854820423,39.870584,146.44,146.43,0.2492433]
[1726854824431,41.57830471,146.44,146.43,0.2492433]
[1726854827150,48.40700471,146.44,146.43,0.2492433]
[1726854827435,41.57830471,146.44,146.43,0.2492433]
[1726854828323,39.870584,146.44,146.43,0.2492433]
[1726854828521,1.70771007,146.44,146.43,0.2492433]
[1726854828724,7.12275841,146.45,146.43,0.2492433]
[1726854829026,22.1981,146.48,146.43,0.2492433]
[1726854829411,1.70732612,146.47,146.43,0.2492433]
[1726854831329,23.776884,146.46,146.43,0.2492433]
[1726854831526,1.70758213,146.45,146.43,0.2492433]
[1726854833239,6.8275,146.47,146.43,0.2492433]
[1726854833424,1.70743012,146.46,146.43,0.2492433]
[1726854837551,22.198,146.48,146.43,0.2492433]
[1726854838344,1.70733399,146.47,146.43,0.2492433]
[1726854839754,8.53463399,146.47,146.43,0.2492433]
[1726854840640,6.8278,146.46,146.43,0.2492433]
[1726854840847,1.70758102,146.45,146.43,0.2492433]
[1726854841031,15.3711,146.48,146.43,0.2492433]
[1726854841032,7.11809863,146.47,146.43,0.2492433]
[1726854841347,1.70758046,146.45,146.43,0.2492433]
[1726854841548,7.11809863,146.47,146.43,0.2492433]
[1726854841933,1.70736144,146.46,146.43,0.2492433]
[1726854842254,15.3711,146.48,146.43,0.2492433]
[1726854842426,1.70718163,146.47,146.43,0.2492433]
[1726854842846,15.3711,146.48,146.43,0.2492433]
[1726854842847,1.70718746,146.46,146.43,0.2492433]
[1726854843863,15.3711,146.48,146.43,0.2492433]
[1726854847061,1.70721858,146.47,146.43,0.2492433]
[1726854847555,8.53451858,146.47,146.43,0.2492433]
[1726854848137,1.70721858,146.47,146.43,0.2492433]
[1726854850963,6.8283,146.45,146.43,0.2492433]
[1726854851259,1.70769641,146.44,146.43,0.2492433]
[1726854851954,32.31328041,146.44,146.43,0.2492433]
[1726854852172,50.856564,146.44,146.43,0.2492433]
[1726854852334,50.856564,146.44,146.39,0.2492433]
[1726854852335,6.8304,146.41,146.39,0.2492433]
[1726854852540,1.70817357,146.4,146.39,0.2492433]
[1726854852772,6.8297,146.42,146.39,0.2492433]
[1726854853359,6.3719,146.43,146.39,0.2492433]
[1726854854050,1.70783679,146.42,146.39,0.2492433]
[1726854854758,6.3719,146.43,146.39,0.2492433]
[1726854855758,1.70783724,146.42,146.39,0.2492433]
[1726854855940,30.606984,146.41,146.39,0.2492433]
[1726854856136,23.776884,146.41,146.39,0.2492433]
[1726854856335,6.8298,146.42,146.39,0.2492433]
[1726854856562,23.776884,146.42,146.39,0.2492433]
[1726854856746,1.70796495,146.41,146.39,0.2492433]
[1726854857938,29.0952,146.43,146.39,0.2492433]
[1726854858369,1.70792719,146.42,146.39,0.2492433]
[1726854858863,6.3719,146.43,146.39,0.2492433]
[1726854859064,7.11969751,146.44,146.39,0.2492433]
[1726854859248,1.7077009,146.43,146.39,0.2492433]
[1726854859777,8.5370009,146.43,146.39,0.2492433]
[1726854860287,23.776884,146.43,146.39,0.2492433]
[1726854861061,6.8302,146.41,146.39,0.2492433]
[1726854861375,1.7080455,146.4,146.39,0.2492433]
[1726854861662,30.606084,146.43,146.39,0.2492433]
[1726854861863,1.70790551,146.42,146.39,0.2492433]
[1726854867375,23.776884,146.45,146.39,0.2492433]
[1726854867680,6.8286,146.45,146.39,0.2492433]
[1726854867967,1.70774022,146.44,146.39,0.2492433]
[1726854868963,23.776884,146.43,146.39,0.2492433]
[1726854869356,23.776884,146.46,146.39,0.2492433]
[1726854869543,23.776884,146.46,146.4,0.12549]
[1726854869746,29.6666,146.47,146.4,0.12549]
[1726854870169,22.8392,146.47,146.4,0.12549]
[1726854870359,13.94481196,146.48,146.4,0.25098]
[1726854870563,1.7073866,146.47,146.4,0.12549]
[1726854870954,23.776884,146.46,146.39,0.2492433]
[1726854871155,23.776884,146.43,146.39,0.2492433]
[1726854871477,1.7078228,146.42,146.39,0.2492433]
[1726854871688,1.70765288,146.44,146.39,0.2492433]
[1726854872777,8.53645288,146.44,146.39,0.2492433]
[1726854873262,1.70765288,146.44,146.39,0.2492433]
[1726854876388,8.53645288,146.44,146.39,0.2492433]
[1726854878073,6.8306,146.4,146.39,0.2492433]
[1726854878272,25.48511924,146.4,146.39,0.2492433]
[1726854880558,32.31571924,146.4,146.39,0.2492433]
[1726854881572,25.48511924,146.4,146.39,0.2492433]
[1726854887791,32.31571924,146.4,146.39,0.2492433]
[1726854888280,23.776884,146.36,146.34,0.3507862]
[1726854888486,1.70870031,146.35,146.34,0.3507862]
[1726854888687,32.31848431,146.35,146.34,0.3507862]
[1726854889484,30.609784,146.35,146.34,0.3507862]
[1726854889882,23.27169,146.4,146.34,0.3507862]
[1726854890065,23.776884,146.36,146.34,0.3507862]
[1726854890264,1.70864021,146.35,146.34,0.3507862]
[1726854891688,6.832,146.37,146.34,0.3507862]
[1726854891893,1.70859125,146.36,146.34,0.3507862]
[1726854896092,23.776884,146.35,146.34,0.3507862]
[1726854897106,30.609784,146.35,146.34,0.3507862]
[1726854897596,6.8326,146.36,146.34,0.3507862]
[1726854897892,30.608984,146.37,146.34,0.3507862]
[1726854898085,1.70866035,146.36,146.34,0.3507862]
[1726854899367,30.608984,146.37,146.34,0.3507862]
[1726854899694,1.70866195,146.35,146.34,0.3507862]
[1726854900071,32.31844595,146.35,146.34,0.3507862]
[1726854900392,25.48554595,146.35,146.34,0.3507862]
[1726854901002,32.31844595,146.35,146.34,0.3507862]
[1726854901176,23.776884,146.35,146.34,0.3507862]
[1726854901584,25.48566192,146.35,146.34,0.3507862]
[1726854903171,23.776884,146.35,146.34,0.3507862]
[1726854903590,25.48565139,146.35,146.34,0.3507862]
[1726854907798,32.31855139,146.35,146.34,0.3507862]
[1726854908177,6.8338,146.33,146.32,0.0676146]
[1726854908373,52.44552493,146.33,146.32,0.0676146]